fUSD/lending_fUSD_20260612
["ID","MTS","AMOUNT","RATE_DAILY","PERIOD"]
[424852946,1781206242000,-150.0,0.00021918,2]
[424852954,1781206242000,-500.0,0.00021974,2]
[424852955,1781206242000,-500.0,0.00021974,2]
[424852956,1781206242000,-500.0,0.00021974,2]
[424852957,1781206242000,-500.0,0.00021974,2]
[424852949,1781206242000,-500.0,0.00021974,2]
[424852947,1781206242000,-150.0,0.00021918,2]
[424852950,1781206242000,-500.0,0.00021974,2]
[424852948,1781206242000,-500.0,0.00021974,2]
[424852951,1781206242000,-500.0,0.00021974,2]
[424852958,1781206242000,-500.0,0.00021974,2]
[424852960,1781206242000,-500.0,0.00021974,2]
[424852963,1781206242000,-500.0,0.00021974,2]
[424852962,1781206242000,-500.0,0.00021974,2]
[424852961,1781206242000,-500.0,0.00021974,2]
[424852965,1781206242000,-500.0,0.00021974,2]
[424852959,1781206242000,-500.0,0.00021974,2]
[424852967,1781206242000,-500.0,0.00021974,2]
[424852964,1781206242000,-500.0,0.00021974,2]
[424852966,1781206242000,-500.0,0.00021974,2]
[424852968,1781206242000,-500.0,0.00021974,2]
[424852970,1781206242000,-500.0,0.00021974,2]
[424852977,1781206242000,-500.0,0.00021974,2]
[424853003,1781206242000,-500.0,0.00021974,2]
[424852953,1781206242000,-500.0,0.00021974,2]
[424852999,1781206242000,-500.0,0.00021974,2]
[424853037,1781206242000,-6076.0,0.00021975,2]
[424853039,1781206242000,-450.0,0.00022,2]
[424853038,1781206242000,-3559.941,0.00021975,2]
[424853041,1781206242000,-260.0,0.00022,2]
[424853040,1781206242000,-466.629508,0.00022,2]
[424853042,1781206242000,-279.0,0.00022,2]
[424853044,1781206242000,-269.0,0.00022,2]
[424853043,1781206242000,-248.0,0.00022,2]
[424853046,1781206242000,-345.0,0.00022,2]
[424853045,1781206242000,-880.0,0.00022,2]
[424853050,1781206242000,-802.0,0.00022,2]
[424853048,1781206242000,-560.27,0.00022,2]
[424853047,1781206242000,-206.0,0.00022,2]
[424853052,1781206242000,-1292.0,0.00022,2]
[424853054,1781206242000,-199.0,0.00022,2]
[424853057,1781206242000,-1183.3,0.00022353,2]
[424853053,1781206242000,-241.0,0.00022,2]
[424853055,1781206242000,-500.0,0.00022172,2]
[424853051,1781206242000,-389.0,0.00022,2]
[424853056,1781206242000,-500.0,0.00022172,2]
[424853058,1781206242000,-2494.55939288,0.00022376,2]
[424853062,1781206242000,-696.5,0.00022466,2]
[424853059,1781206242000,-2711.75409417,0.00022376,2]
[424853060,1781206242000,-525.0,0.00022384,6]
[424853001,1781206242000,-500.0,0.00021974,2]
[424853036,1781206242000,-1227.0,0.00021975,2]
[424853035,1781206242000,-382.0,0.00021975,2]
[424853049,1781206242000,-364.0,0.00022,2]
[424853033,1781206242000,-500.0,0.00021974,2]
[424853034,1781206242000,-1274.0,0.00021975,2]
[424853008,1781206242000,-500.0,0.00021974,2]
[424853010,1781206242000,-500.0,0.00021974,2]
[424853013,1781206242000,-500.0,0.00021974,2]
[424853016,1781206242000,-500.0,0.00021974,2]
[424853009,1781206242000,-500.0,0.00021974,2]
[424853011,1781206242000,-500.0,0.00021974,2]
[424853020,1781206242000,-500.0,0.00021974,2]
[424853004,1781206242000,-500.0,0.00021974,2]
[424853018,1781206242000,-500.0,0.00021974,2]
[424853017,1781206242000,-500.0,0.00021974,2]
[424853012,1781206242000,-500.0,0.00021974,2]
[424853014,1781206242000,-500.0,0.00021974,2]
[424853019,1781206242000,-500.0,0.00021974,2]
[424853021,1781206242000,-500.0,0.00021974,2]
[424853015,1781206242000,-500.0,0.00021974,2]
[424853026,1781206242000,-500.0,0.00021974,2]
[424853025,1781206242000,-500.0,0.00021974,2]
[424853029,1781206242000,-500.0,0.00021974,2]
[424853028,1781206242000,-500.0,0.00021974,2]
[424853024,1781206242000,-500.0,0.00021974,2]
[424853027,1781206242000,-500.0,0.00021974,2]
[424853031,1781206242000,-500.0,0.00021974,2]
[424853032,1781206242000,-500.0,0.00021974,2]
[424853022,1781206242000,-500.0,0.00021974,2]
[424853030,1781206242000,-500.0,0.00021974,2]
[424853023,1781206242000,-500.0,0.00021974,2]
[424853110,1781206243000,-279.0,0.00024,2]
[424853107,1781206243000,-500.0,0.00024,2]
[424853104,1781206243000,-525.0,0.00023636,7]
[424853105,1781206243000,-206.40590301,0.0002381,2]
[424853108,1781206243000,-466.629508,0.00024,2]
[424853106,1781206243000,-2711.75409417,0.00023839,2]
[424853102,1781206243000,-500.0,0.00023522,2]
[424853098,1781206243000,-250.0,0.00023379,2]
[424853100,1781206243000,-587.77,0.000235,7]
[424853101,1781206243000,-500.0,0.00023522,2]
[424853103,1781206243000,-150.0,0.00023578,2]
[424853112,1781206243000,-269.0,0.00024,2]
[424853133,1781206243000,-161.70674204,0.0002445,2]
[424853114,1781206243000,-345.0,0.00024,2]
[424853113,1781206243000,-880.0,0.00024,2]
[424853115,1781206243000,-206.0,0.00024,2]
[424853116,1781206243000,-364.0,0.00024,2]
[424853117,1781206243000,-802.0,0.00024,2]
[424853119,1781206243000,-1292.0,0.00024,2]
[424853120,1781206243000,-241.0,0.00024,2]
[424853121,1781206243000,-199.0,0.00024,2]
[424853118,1781206243000,-389.0,0.00024,2]
[424853123,1781206243000,-150.0,0.00024164,2]
[424853122,1781206243000,-2781.82699784,0.0002402,2]
[424853109,1781206243000,-260.0,0.00024,2]
[424853111,1781206243000,-248.0,0.00024,2]
[424853099,1781206243000,-2682.57183977,0.00023472,2]
[424853067,1781206243000,-500.0,0.00022837,2]
[424853096,1781206243000,-1839.64,0.00023327,7]
[424853125,1781206243000,-1904.64,0.00024174,2]
[424853068,1781206243000,-2586.85809042,0.00022924,2]
[424853065,1781206243000,-200.0,0.00022737,2]
[424853064,1781206243000,-312.12,0.00022665,2]
[424853066,1781206243000,-500.0,0.00022837,2]
[424853079,1781206243000,-880.0,0.00023,2]
[424853077,1781206243000,-269.0,0.00023,2]
[424853069,1781206243000,-158.55225596,0.00022979,2]
[424853084,1781206243000,-802.0,0.00023,2]
[424853080,1781206243000,-345.0,0.00023,2]
[424853082,1781206243000,-206.0,0.00023,2]
[424853083,1781206243000,-364.0,0.00023,2]
[424853095,1781206243000,-150.0,0.00023288,2]
[424853085,1781206243000,-389.0,0.00023,2]
[424853070,1781206243000,-158.55225596,0.00022979,2]
[424853075,1781206243000,-279.0,0.00023,2]
[424853076,1781206243000,-248.0,0.00023,2]
[424853074,1781206243000,-260.0,0.00023,2]
[424853087,1781206243000,-241.0,0.00023,2]
[424853089,1781206243000,-199.0,0.00023,2]
[424853093,1781206243000,-300.0,0.00023089,2]
[424853086,1781206243000,-1292.0,0.00023,2]
[424853091,1781206243000,-525.0,0.0002301,6]
[424853094,1781206243000,-300.0,0.0002327,2]
[424853092,1781206243000,-150.0,0.00023014,2]
[424853097,1781206243000,-303.00381317,0.00023346,2]
[424853072,1781206243000,-466.629508,0.00023,2]
[424853131,1781206243000,-525.0,0.00024263,7]
[424853071,1781206243000,-150.0,0.00022995,2]
[424853134,1781206243000,-502.50956445,0.00024479,2]
[424853168,1781206243000,-2991.49051684,0.00025116,2]
[424853157,1781206243000,-401.29885595,0.00025,2]
[424853160,1781206243000,-244.0,0.00025,2]
[424853164,1781206243000,-154.29,0.00025,2]
[424853165,1781206243000,-154.29,0.00025,2]
[424853162,1781206243000,-215.0,0.00025,2]
[424853167,1781206243000,-154.29,0.00025,2]
[424853166,1781206243000,-154.29,0.00025,2]
[424853163,1781206243000,-154.29,0.00025,2]
[424853170,1781206243000,-150.0,0.00025373,2]
[424853174,1781206243000,-1904.64,0.00025786,2]
[424853171,1781206243000,-525.0,0.00025515,9]
[424853169,1781206243000,-2711.75409417,0.00025302,2]
[424853173,1781206243000,-9226.68,0.00025786,2]
[424853172,1781206243000,-500.0,0.00025703,2]
[424853176,1781206243000,-26046.27,0.00025786,2]
[424853177,1781206243000,-784.89,0.00025786,2]
[424853181,1781206243000,-525.0,0.00026141,9]
[424853178,1781206243000,-206.0,0.00025869,2]
[424853175,1781206243000,-3102.91,0.00025786,2]
[424853183,1781206243000,-965.0,0.00026437,10]
[424853184,1781206243000,-500.0,0.00026474,2]
[424853185,1781206243000,-150.0,0.00026641,2]
[424853182,1781206243000,-1183.3,0.00026296,2]
[424853186,1781206243000,-1839.64,0.00026654,7]
[424853187,1781206243000,-1030.0,0.00026668,2]
[424853179,1781206243000,-550.0,0.00026,2]
[424853158,1781206243000,-1306.0,0.00025,2]
[424853180,1781206243000,-587.77,0.00026,7]
[424853154,1781206243000,-222.0,0.00025,2]
[424853153,1781206243000,-356.0,0.00025,2]
[424853129,1781206243000,-500.0,0.00024228,2]
[424853132,1781206243000,-1183.3,0.00024324,2]
[424853128,1781206243000,-784.89,0.00024174,2]
[424853124,1781206243000,-9226.68,0.00024174,2]
[424853127,1781206243000,-26046.27,0.00024174,2]
[424853126,1781206243000,-3102.91,0.00024174,2]
[424853145,1781206243000,-6076.0,0.00024975,2]
[424853135,1781206243000,-2884.75459676,0.00024568,2]
[424853144,1781206243000,-1227.0,0.00024975,2]
[424853136,1781206243000,-1000.0,0.00024658,2]
[424853140,1781206243000,-525.0,0.00024889,8]
[424853142,1781206243000,-1274.0,0.00024975,2]
[424853130,1781206243000,-500.0,0.00024228,2]
[424853137,1781206243000,-172.14,0.00024658,2]
[424853138,1781206243000,-150.0,0.00024658,2]
[424853156,1781206243000,-821.0,0.00025,2]
[424853151,1781206243000,-277.0,0.00025,2]
[424853152,1781206243000,-897.0,0.00025,2]
[424853149,1781206243000,-298.0,0.00025,2]
[424853148,1781206243000,-279.0,0.00025,2]
[424853150,1781206243000,-253.0,0.00025,2]
[424853146,1781206243000,-3556.0,0.00024975,2]
[424853155,1781206243000,-370.0,0.00025,2]
[424853143,1781206243000,-382.0,0.00024975,2]
[424853141,1781206243000,-500.0,0.00024955,2]
[424853139,1781206243000,-560.27,0.00024721,7]
[424853147,1781206243000,-1839.64,0.00024991,7]
[424853212,1781206244000,-2711.75409417,0.00026765,2]
[424853213,1781206244000,-525.0,0.00026768,10]
[424853211,1781206244000,-2054.15682156,0.00026668,2]
[424853214,1781206244000,-500.0,0.00026865,2]
[424853215,1781206244000,-543.9,0.00026865,2]
[424853220,1781206244000,-1000.0,0.00027,2]
[424853221,1781206244000,-518.5,0.00027216,2]
[424853222,1781206244000,-500.0,0.00027269,2]
[424853229,1781206244000,-150.0,0.00027397,2]
[424853228,1781206244000,-150.0,0.00027397,2]
[424853224,1781206244000,-166.43965368,0.00027351,7]
[424853223,1781206244000,-188.70233048,0.00027351,7]
[424853226,1781206244000,-185.32804338,0.00027351,7]
[424853219,1781206244000,-500.0,0.00026966,10]
[424853227,1781206244000,-525.0,0.00027394,10]
[424853230,1781206244000,-150.0,0.00027397,2]
[424853233,1781206244000,-1500.0,0.00027397,2]
[424853231,1781206244000,-288.75019747,0.00027397,2]
[424853225,1781206244000,-181.85894618,0.00027351,7]
[424853218,1781206244000,-200.0,0.00026903,2]
[424853202,1781206244000,-1592.87721992,0.00026668,2]
[424853216,1781206244000,-500.0,0.00026865,2]
[424853232,1781206244000,-198.30946013,0.00027397,2]
[424853193,1781206244000,-1235.18214925,0.00026668,2]
[424853194,1781206244000,-1280.88388877,0.00026668,2]
[424853190,1781206244000,-1107.63007,0.00026668,2]
[424853191,1781206244000,-1148.61238259,0.00026668,2]
[424853188,1781206244000,-500.0,0.00026668,2]
[424853192,1781206244000,-1191.11104074,0.00026668,2]
[424853189,1781206244000,-1068.11,0.00026668,2]
[424853217,1781206244000,-500.0,0.00026865,2]
[424853197,1781206244000,-1428.38747117,0.00026668,2]
[424853198,1781206244000,-1481.2378076,0.00026668,2]
[424853204,1781206244000,-1651.81367706,0.00026668,2]
[424853208,1781206244000,-1842.0326633,0.00026668,2]
[424853207,1781206244000,-1776.30922209,0.00026668,2]
[424853196,1781206244000,-1377.42282658,0.00026668,2]
[424853209,1781206244000,-1910.18787185,0.00026668,2]
[424853206,1781206244000,-1712.93078311,0.00026668,2]
[424853210,1781206244000,-1980.8648231,0.00026668,2]
[424853200,1781206244000,-1536.04360648,0.00026668,2]
[424853195,1781206244000,-1328.27659266,0.00026668,2]
[424853234,1781206244000,-300.0,0.00027397,2]
[424853236,1781206244000,-13606.94,0.00027397,10]
[424853261,1781206244000,-373.52,0.00027611,30]
[424853260,1781206244000,-373.36,0.00027611,30]
[424853263,1781206244000,-373.52,0.00027641,2]
[424853264,1781206244000,-373.36,0.00027672,7]
[424853271,1781206244000,-646.64,0.00027711,7]
[424853262,1781206244000,-373.36,0.00027641,2]
[424853272,1781206244000,-537.45,0.00027711,7]
[424853265,1781206244000,-373.52,0.00027672,7]
[424853254,1781206244000,-537.45,0.0002755,30]
[424853267,1781206244000,-373.52,0.00027702,30]
[424853270,1781206244000,-487.37,0.00027711,7]
[424853268,1781206244000,-526.19,0.00027711,7]
[424853273,1781206244000,-487.26,0.00027711,7]
[424853276,1781206244000,-373.36,0.00027763,7]
[424853277,1781206244000,-373.52,0.00027763,7]
[424853274,1781206244000,-373.36,0.00027733,2]
[424853275,1781206244000,-373.52,0.00027733,2]
[424853246,1781206244000,-150.0748195,0.00027422,7]
[424853266,1781206244000,-373.36,0.00027702,30]
[424853259,1781206244000,-274.0,0.00027594,2]
[424853269,1781206244000,-646.56,0.00027711,7]
[424853255,1781206244000,-487.26,0.0002755,30]
[424853235,1781206244000,-760.29,0.00027397,20]
[424853253,1781206244000,-646.64,0.0002755,30]
[424853237,1781206244000,-162.89675845,0.00027397,7]
[424853239,1781206244000,-247.51,0.000274,7]
[424853244,1781206244000,-153.28769057,0.00027422,2]
[424853240,1781206244000,-172.15818035,0.00027422,7]
[424853241,1781206244000,-176.29790703,0.00027422,7]
[424853243,1781206244000,-151.22155108,0.00027422,7]
[424853245,1781206244000,-166.06626716,0.00027422,7]
[424853238,1781206244000,-186.71,0.000274,7]
[424853247,1781206244000,-560.27,0.00027442,7]
[424853248,1781206244000,-500.0,0.000275,7]
[424853256,1781206244000,-373.52,0.0002755,2]
[424853249,1781206244000,-526.19,0.0002755,30]
[424853251,1781206244000,-487.37,0.0002755,30]
[424853250,1781206244000,-646.56,0.0002755,30]
[424853257,1781206244000,-373.36,0.0002758,7]
[424853258,1781206244000,-373.52,0.0002758,7]
[424853242,1781206244000,-156.0553129,0.00027422,7]
[424853252,1781206244000,-373.36,0.0002755,2]
[424853315,1781206245000,-373.36,0.00028038,7]
[424853317,1781206245000,-373.36,0.00028068,30]
[424853316,1781206245000,-373.52,0.00028038,7]
[424853314,1781206245000,-487.26,0.00028033,30]
[424853321,1781206245000,-373.52,0.00028099,2]
[424853312,1781206245000,-646.64,0.00028033,30]
[424853322,1781206245000,-186.71,0.000281,7]
[424853307,1781206245000,-373.52,0.00028007,2]
[424853308,1781206245000,-525.0,0.0002802,11]
[424853320,1781206245000,-373.36,0.00028099,2]
[424853305,1781206245000,-600.0,0.00028,2]
[424853311,1781206245000,-487.37,0.00028033,30]
[424853313,1781206245000,-537.45,0.00028033,30]
[424853327,1781206245000,-373.62,0.0002813,7]
[424853319,1781206245000,-500.0,0.00028087,15]
[424853325,1781206245000,-502.50956445,0.00028106,2]
[424853324,1781206245000,-209.05320754,0.00028101,30]
[424853323,1781206245000,-247.51,0.000281,7]
[424853328,1781206245000,-526.19,0.00028194,7]
[424853332,1781206245000,-537.45,0.00028194,7]
[424853333,1781206245000,-487.26,0.00028194,7]
[424853329,1781206245000,-646.56,0.00028194,7]
[424853326,1781206245000,-373.53,0.0002813,7]
[424853331,1781206245000,-646.64,0.00028194,7]
[424853330,1781206245000,-487.37,0.00028194,7]
[424853304,1781206245000,-373.52,0.00027977,30]
[424853318,1781206245000,-373.52,0.00028068,30]
[424853303,1781206245000,-373.36,0.00027977,30]
[424853286,1781206245000,-646.56,0.00027872,2]
[424853309,1781206245000,-526.19,0.00028033,30]
[424853278,1781206245000,-537.6845,0.00027764,2]
[424853284,1781206245000,-373.52,0.00027855,7]
[424853279,1781206245000,-373.36,0.00027794,30]
[424853280,1781206245000,-373.52,0.00027794,30]
[424853281,1781206245000,-373.36,0.00027824,2]
[424853283,1781206245000,-373.36,0.00027855,7]
[424853282,1781206245000,-373.52,0.00027824,2]
[424853285,1781206245000,-526.19,0.00027872,2]
[424853287,1781206245000,-487.37,0.00027872,2]
[424853297,1781206245000,-373.52,0.00027946,7]
[424853298,1781206245000,-150.0,0.00027973,2]
[424853289,1781206245000,-537.45,0.00027872,2]
[424853306,1781206245000,-373.36,0.00028007,2]
[424853290,1781206245000,-487.26,0.00027872,2]
[424853288,1781206245000,-646.64,0.00027872,2]
[424853293,1781206245000,-2000.0,0.00027914,7]
[424853292,1781206245000,-373.52,0.00027885,30]
[424853296,1781206245000,-373.36,0.00027946,7]
[424853295,1781206245000,-373.52,0.00027916,2]
[424853294,1781206245000,-373.36,0.00027916,2]
[424853291,1781206245000,-373.36,0.00027885,30]
[424853300,1781206245000,-1227.0,0.00027975,2]
[424853299,1781206245000,-1274.0,0.00027975,2]
[424853301,1781206245000,-6076.0,0.00027975,2]
[424853310,1781206245000,-646.56,0.00028033,30]
[424853302,1781206245000,-3556.0,0.00027975,2]
[424853334,1781206245000,-587.77,0.000282,7]
[424853336,1781206245000,-163.67,0.00028304,7]
[424853392,1781206245000,-880.0,0.00029149,30]
[424853335,1781206245000,-1183.3,0.00028267,2]
[424853363,1781206245000,-3000.0,0.00028826,2]
[424853370,1781206245000,-211.36,0.00029,2]
[424853371,1781206245000,-10000.0,0.00029,2]
[424853377,1781206245000,-3000.0,0.00029,2]
[424853378,1781206245000,-1336.92,0.00029,2]
[424853374,1781206245000,-242.16,0.00029,2]
[424853373,1781206245000,-500.0,0.00029,2]
[424853379,1781206245000,-236.0,0.00029,2]
[424853372,1781206245000,-358.66,0.00029,2]
[424853376,1781206245000,-500.0,0.00029,2]
[424853375,1781206245000,-500.0,0.00029,2]
[424853381,1781206245000,-215.95576085,0.00029,30]
[424853365,1781206245000,-3000.0,0.00028826,2]
[424853393,1781206245000,-345.0,0.00029149,30]
[424853380,1781206245000,-500.0,0.00029,2]
[424853388,1781206245000,-279.0,0.00029149,30]
[424853386,1781206245000,-491.01,0.00029091,4]
[424853390,1781206245000,-269.0,0.00029149,30]
[424853389,1781206245000,-248.0,0.00029149,30]
[424853383,1781206245000,-236.0,0.00029,2]
[424853384,1781206245000,-236.0,0.00029,2]
[424853387,1781206245000,-260.0,0.00029149,30]
[424853385,1781206245000,-500.0,0.00029,2]
[424853394,1781206245000,-206.0,0.00029149,30]
[424853395,1781206245000,-364.0,0.00029162,30]
[424853396,1781206245000,-802.0,0.00029162,30]
[424853382,1781206245000,-236.0,0.00029,2]
[424853366,1781206245000,-1408.61,0.00028826,2]
[424853344,1781206245000,-370.65608675,0.00028644,7]
[424853362,1781206245000,-301.32,0.00028826,2]
[424853343,1781206245000,-332.87930736,0.00028644,7]
[424853342,1781206245000,-163.67,0.00028396,9]
[424853340,1781206245000,-2812.0,0.00028341,5]
[424853338,1781206245000,-1839.64,0.00028318,7]
[424853339,1781206245000,-2147.0,0.00028341,5]
[424853341,1781206245000,-163.67,0.00028348,13]
[424853337,1781206245000,-610.43406966,0.00028312,2]
[424853360,1781206245000,-247.51,0.000288,7]
[424853349,1781206245000,-1473.01,0.00028705,9]
[424853356,1781206245000,-306.57538114,0.00028717,2]
[424853348,1781206245000,-491.01,0.00028685,3]
[424853350,1781206245000,-344.31636069,0.00028717,7]
[424853347,1781206245000,-152.59230985,0.00028668,7]
[424853345,1781206245000,-325.7935169,0.00028644,7]
[424853346,1781206245000,-525.0,0.00028646,11]
[424853351,1781206245000,-352.59581407,0.00028717,7]
[424853364,1781206245000,-3000.0,0.00028826,2]
[424853368,1781206245000,-500.0,0.00028929,17]
[424853369,1781206245000,-158.55225596,0.0002899,2]
[424853359,1781206245000,-186.71,0.000288,7]
[424853367,1781206245000,-642.0,0.000289,2]
[424853361,1781206245000,-860.78,0.00028826,2]
[424853358,1781206245000,-300.149639,0.00028717,7]
[424853353,1781206245000,-302.44310216,0.00028717,7]
[424853355,1781206245000,-189.92424285,0.00028717,7]
[424853354,1781206245000,-163.46200504,0.00028717,7]
[424853352,1781206245000,-312.1106258,0.00028717,7]
[424853357,1781206245000,-332.13253432,0.00028717,7]
[424853436,1781206246000,-525.0,0.00029899,13]
[424853432,1781206246000,-450.2244585,0.00029581,7]
[424853439,1781206246000,-569.26360943,0.000299,2]
[424853437,1781206246000,-569.2636095,0.000299,2]
[424853434,1781206246000,-213.66750967,0.00029581,7]
[424853440,1781206246000,-569.26360943,0.000299,2]
[424853431,1781206246000,-498.19880149,0.00029581,7]
[424853426,1781206246000,-453.66465325,0.00029581,7]
[424853422,1781206246000,-242.81820882,0.00029581,7]
[424853421,1781206246000,-369.01789072,0.00029581,7]
[424853433,1781206246000,-205.40773364,0.00029581,7]
[424853438,1781206246000,-569.26360943,0.000299,2]
[424853451,1781206246000,-569.26360943,0.000299,2]
[424853441,1781206246000,-569.26360943,0.000299,2]
[424853443,1781206246000,-569.26360943,0.000299,2]
[424853445,1781206246000,-569.26360943,0.000299,2]
[424853446,1781206246000,-569.26360943,0.000299,2]
[424853450,1781206246000,-569.26360943,0.000299,2]
[424853448,1781206246000,-569.26360943,0.000299,2]
[424853444,1781206246000,-569.26360943,0.000299,2]
[424853447,1781206246000,-569.26360943,0.000299,2]
[424853449,1781206246000,-569.26360943,0.000299,2]
[424853442,1781206246000,-569.26360943,0.000299,2]
[424853453,1781206246000,-569.26360943,0.000299,2]
[424853452,1781206246000,-569.26360943,0.000299,2]
[424853425,1781206246000,-468.16593869,0.00029581,7]
[424853435,1781206246000,-500.0,0.00029797,19]
[424853423,1781206246000,-198.36476642,0.00029581,7]
[424853411,1781206246000,-151.4770914,0.00029505,7]
[424853418,1781206246000,-516.47454104,0.00029581,7]
[424853455,1781206246000,-569.26360943,0.000299,2]
[424853404,1781206246000,-1473.01,0.00029489,12]
[424853397,1781206246000,-389.0,0.00029162,30]
[424853400,1781206246000,-199.0,0.00029162,30]
[424853403,1781206246000,-150.0,0.00029372,2]
[424853401,1781206246000,-525.0,0.00029273,12]
[424853402,1781206246000,-343.0,0.00029318,2]
[424853399,1781206246000,-241.0,0.00029162,30]
[424853405,1781206246000,-244.64774395,0.00029505,7]
[424853398,1781206246000,-1292.0,0.00029162,30]
[424853407,1781206246000,-208.97055616,0.00029505,7]
[424853417,1781206246000,-181.66088399,0.00029531,7]
[424853406,1781206246000,-499.31896103,0.00029505,7]
[424853409,1781206246000,-240.86109358,0.00029505,7]
[424853413,1781206246000,-488.69027535,0.00029505,7]
[424853412,1781206246000,-555.98413013,0.00029505,7]
[424853408,1781206246000,-211.25981778,0.00029505,7]
[424853410,1781206246000,-199.02709662,0.00029505,7]
[424853415,1781206246000,-218.2486721,0.00029531,7]
[424853416,1781206246000,-305.18461971,0.00029531,7]
[424853414,1781206246000,-208.75109454,0.00029531,7]
[424853419,1781206246000,-528.8937211,0.00029581,7]
[424853429,1781206246000,-459.86307171,0.00029581,2]
[424853428,1781206246000,-379.8484857,0.00029581,7]
[424853420,1781206246000,-355.63527253,0.00029581,7]
[424853424,1781206246000,-247.42429171,0.00029581,7]
[424853427,1781206246000,-326.92401008,0.00029581,7]
[424853430,1781206246000,-207.178928,0.00029581,5]
[424853454,1781206246000,-569.26360943,0.000299,2]
[424853457,1781206246000,-1839.64,0.00029981,7]
[424853465,1781206246000,-271.75815348,0.0003008,7]
[424853487,1781206246000,-208.05,0.00030137,5]
[424853486,1781206246000,-363.32176798,0.00030105,7]
[424853491,1781206246000,-1000.0,0.00030137,30]
[424853492,1781206246000,-1000.0,0.00030137,30]
[424853493,1781206246000,-1000.0,0.00030137,30]
[424853495,1781206246000,-177.44,0.00030137,30]
[424853499,1781206246000,-269.0,0.00030149,30]
[424853496,1781206246000,-260.0,0.00030149,30]
[424853497,1781206246000,-279.0,0.00030149,30]
[424853500,1781206246000,-880.0,0.00030149,30]
[424853501,1781206246000,-345.0,0.00030149,30]
[424853498,1781206246000,-248.0,0.00030149,30]
[424853494,1781206246000,-761.0,0.00030137,30]
[424853503,1781206246000,-688.63272138,0.00030156,7]
[424853513,1781206246000,-424.56355346,0.00030156,7]
[424853504,1781206246000,-705.19162814,0.00030156,7]
[424853506,1781206246000,-553.52683608,0.00030156,7]
[424853502,1781206246000,-206.0,0.00030149,30]
[424853505,1781206246000,-533.45290879,0.00030156,7]
[424853507,1781206246000,-230.76624935,0.00030156,7]
[424853508,1781206246000,-253.32091426,0.00030156,7]
[424853466,1781206246000,-754.80932193,0.0003008,7]
[424853512,1781206246000,-485.63641763,0.00030156,7]
[424853511,1781206246000,-344.97576152,0.00030156,7]
[424853509,1781206246000,-330.70243617,0.00030156,7]
[424853514,1781206246000,-292.74392776,0.00030156,7]
[424853515,1781206246000,-494.84858342,0.00030156,7]
[424853485,1781206246000,-457.77692956,0.00030105,7]
[424853483,1781206246000,-417.50218907,0.00030105,7]
[424853510,1781206246000,-201.15418835,0.00030156,7]
[424853482,1781206246000,-354.98947477,0.00030105,7]
[424853484,1781206246000,-194.26899729,0.00030105,7]
[424853458,1781206246000,-72720.59533137,0.0003,7]
[424853459,1781206246000,-1588.95,0.0003,7]
[424853461,1781206246000,-1000.0,0.0003,2]
[424853464,1781206246000,-157.05731674,0.0003008,7]